Cogmind - Beta 14 @@@ ROGUE MODE // 2025.03.23 @ 10:35:32 // Winter2019/RPGLIKE Player: Lava Result: Destroyed by S-43 Plague with Heavy Machine Gun Performance ------------- Evolutions (7) 3500 Regions Visited (15) 3000 Robots Destroyed (147) 735 Value Destroyed (5827) 5827 Prototype IDs (45) 900 Alien Tech Used (0) 0 Bonus (1022) 1022 TOTAL SCORE: 14984 Bonus ------- High Alert Combat Kills 183 Follower Combat Kills 595 Aligned with FarCom 300 Friendly Fire -56 Cogmind --------- Core Integrity 0/1700 Matter 262/300 Energy 129/150 System Corruption 2% Temperature Cool (0) Movement Flying (50) Location -3/Research Parts ------- > --- POWER (1) -------- Micro Antimatter Reactor > --- PROPULSION (4) --- Flying Fortress v7 > --- UTILITY (6) ------ Experimental Sensor Array Advanced Signal Interpreter Reaction Control System Hacking Suite Hacking Suite Advanced System Shield > --- WEAPON (2) ------- Nova Cannon KE Penetrator > --- INVENTORY (4) ---- Faulty Cooled Nuclear Pulse Thruster Cooled Nuclear Pulse Thruster Impulse Thruster Array Peak State ------------ > --- POWER ------------ Micro Antimatter Reactor > --- PROPULSION ------- Flying Fortress v7 > --- UTILITY ---------- Experimental Sensor Array Advanced Signal Interpreter Reaction Control System Hacking Suite Hacking Suite Advanced System Shield > --- WEAPON ----------- Nova Cannon KE Penetrator > --- INVENTORY -------- Cooled Nuclear Pulse Thruster Cooled Nuclear Pulse Thruster Impulse Thruster Array [Rating: 86] Favorites ----------- Power Light Nuclear Core Engine Light Deuterium Engine Power Core Light Nuclear Core Reactor Micro Antimatter Reactor Propulsion Flying Fortress v7 Treads Light Treads Flight Unit Flying Fortress v7 Utility Hacking Suite Device Experimental Sensor Array Processor Improved Signal Interpreter Hackware Hacking Suite Protection Light Armor Plating Weapon KE Penetrator Energy Gun Precision Beam Rifle Energy Cannon Cooled Particle Cannon Ballistic Gun KE Penetrator Ballistic Cannon Gauss Cannon Impact Weapon Great Maul Slashing Weapon Axe Build | -11 -10 -10 -9 -9 -9 -8 -8 -7 -7 -7 -6 -6 -5 -4 -3 ------- Run | Yrd Mat Min Mat Min Exi Min Mat Fac Was Fac Fac Ext Fac Fac Res Slots Evolved 9 | 3 2 . . . 1 . 1 . 1 . 1 . . . . Power . | . . . . . . . . . . . . . . . . Propulsion 3 | 1 1 . . . 1 . . . . . . . . . . Utility 5 | 1 1 . . . . . 1 . 1 . 1 . . . . Weapon 1 | 1 . . . . . . . . . . . . . . . Parts Attached 53 | 5 8 1 3 . 1 1 11 . . 8 3 2 7 . 3 Power 6 | 1 1 . . . . 1 . . . . 1 . 1 . 1 Engine 4 | 1 1 . . . . . . . . . 1 . 1 . . Core 1 | . . . . . . 1 . . . . . . . . . Reactor 1 | . . . . . . . . . . . . . . . 1 Propulsion 12 | 2 3 . . . 1 . 1 . . 4 . . 1 . . Treads 2 | 2 . . . . . . . . . . . . . . . Leg . | . . . . . . . . . . . . . . . . Wheel . | . . . . . . . . . . . . . . . . Hover . | . . . . . . . . . . . . . . . . Flight 10 | . 3 . . . 1 . 1 . . 4 . . 1 . . Utility 16 | . 3 1 1 . . . 5 . . 3 1 . 1 . 1 Device 6 | . 1 1 . . . . 1 . . 2 . . . . 1 Storage . | . . . . . . . . . . . . . . . . Processor 5 | . . . 1 . . . 3 . . . 1 . . . . Hackware 4 | . 1 . . . . . 1 . . 1 . . 1 . . Protection 1 | . 1 . . . . . . . . . . . . . . Artifact . | . . . . . . . . . . . . . . . . Weapon 19 | 2 1 . 2 . . . 5 . . 1 1 2 4 . 1 Energy Gun 4 | 1 1 . 1 . . . 1 . . . . . . . . Energy Cannon 5 | . . . . . . . . . . 1 . 1 2 . 1 Ballistic Gun 5 | 1 . . 1 . . . 2 . . . . . 1 . . Ballistic Cannon 2 | . . . . . . . 1 . . . 1 . . . . Launcher . | . . . . . . . . . . . . . . . . Special Weapon . | . . . . . . . . . . . . . . . . Impact Weapon 2 | . . . . . . . . . . . . 1 1 . . Slashing Weapon 1 | . . . . . . . 1 . . . . . . . . Piercing Weapon . | . . . . . . . . . . . . . . . . Special Melee Weapon . | . . . . . . . . . . . . . . . . Unidentified Prototypes 7 | . 1 1 2 . . . 1 . . 2 . . . . . Parts Lost . | . . . . . . . . . . . . . . . . Power . | . . . . . . . . . . . . . . . . Propulsion . | . . . . . . . . . . . . . . . . Utility . | . . . . . . . . . . . . . . . . Weapon . | . . . . . . . . . . . . . . . . Highest Loss Streak . | . . . . . . . . . . . . . . . . To Critical Strikes . | . . . . . . . . . . . . . . . . Average Slot Usage (%) 77 | . 83 96 100 100 82 70 72 72 66 74 75 76 76 76 76 Engine 5 | . 13 11 11 11 10 7 . . . . 6 7 7 7 3 Core 2 | . . . . . . 2 9 9 8 8 1 . . . . Treads 1 | . 10 . . . . . . . . . . . . . . Flight 11 | . 17 33 33 33 19 10 9 9 8 8 7 7 7 7 7 Device 8 | . 4 7 11 11 10 10 9 9 8 8 7 7 7 7 12 Processor 9 | . . . 7 11 10 10 9 9 8 8 8 15 15 15 9 Hackware 18 | . 3 11 11 11 10 10 17 18 16 24 24 23 23 23 23 Protection 1 | . 5 11 3 . . . . . . . . . . . . Energy Gun 4 | . 13 11 11 11 10 10 8 9 8 1 . . . . . Energy Cannon 4 | . . . . . . . . . . 6 7 6 6 7 7 Ballistic Gun 6 | . 13 11 11 11 10 10 5 . . . . . 6 7 7 Ballistic Cannon 2 | . . . . . . . 3 9 8 8 7 7 . . . Peak Build Rating 86 | 5 16 25 30 30 53 55 61 60 60 64 70 70 81 81 86 Average Rating 59 | 3 9 21 28 30 43 53 59 60 60 62 65 69 76 81 82 On Entrance 47 | . 5 16 25 30 30 53 55 60 60 60 64 70 70 81 81 Naked Turns . | . . . . . . . . . . . . . . . . Heaviest Build 28 | 8 10 9 10 9 9 11 13 13 13 18 20 20 27 27 28 Greatest Support 50 | 40 40 15 15 15 50 50 50 50 50 50 50 50 50 50 50 Greatest Overweight (x) 5 | . 2 . . . . . . . . 5 . . . . . Average Overweight (x) . | . . . . . . . . . . . . . . . . Largest Inventory Capacity 4 | 1 1 1 1 1 1 1 2 2 2 2 2 2 4 4 4 Average Capacity 2 | 1 1 1 1 1 1 1 1 2 2 2 2 2 3 4 4 Most Carried 4 | 1 1 1 1 1 1 1 2 2 2 2 2 2 4 4 4 Average Carried 2 | . . . . 1 1 . 1 2 2 1 1 2 3 4 3 Final Capacity 4 | 1 1 1 1 1 1 1 2 2 2 2 2 2 4 4 4 Final Carried 4 | . . . 1 1 1 1 2 2 2 2 2 2 4 4 4 Class Distribution -------------------- 73% | Hacker-Scout 20% | Mutant 5% | Scout Dominant Class ---------------- Mutant | -10/Materials Mutant | -10/Mines Mutant | -9/Materials Mutant | -9/Mines Mutant | -9/Exiles Scout | -8/Mines Hacker-Scout | -8/Materials Hacker-Scout | -7/Factory Hacker-Scout | -7/Waste Hacker-Scout | -7/Factory Hacker-Scout | -6/Factory Hacker-Scout | -6/Extension Hacker-Scout | -5/Factory Hacker-Scout | -4/Factory Hacker-Scout | -3/Research Resources | -11 -10 -10 -9 -9 -9 -8 -8 -7 -7 -7 -6 -6 -5 -4 -3 ----------- Run | Yrd Mat Min Mat Min Exi Min Mat Fac Was Fac Fac Ext Fac Fac Res Matter Collected 2328 | 250 138 5 111 . . 55 425 . . 200 88 406 202 46 402 Remotely . | . . . . . . . . . . . . . . . . Salvage Created 4921 | . 314 44 398 . . 199 984 . . 251 293 359 572 46 1461 Parts 292 | . 26 5 25 . . 5 66 . . 18 18 16 33 7 73 Haulers Intercepted 2 | . . . . . . . 1 . . . . . . . 1 Recyclers Shooed 2 | . 1 . . . . . . . . . . . . . 1 Parts Field Recycled . | . . . . . . . . . . . . . . . . Retrieved Matter . | . . . . . . . . . . . . . . . . Parts Self-Destructed . | . . . . . . . . . . . . . . . . Prevented . | . . . . . . . . . . . . . . . . Kills | -11 -10 -10 -9 -9 -9 -8 -8 -7 -7 -7 -6 -6 -5 -4 -3 ------- Run | Yrd Mat Min Mat Min Exi Min Mat Fac Was Fac Fac Ext Fac Fac Res Combat Hostiles Destroyed 106 | . 12 5 7 . . 3 26 . . 8 6 9 11 1 18 Guns 56 | . 12 5 7 . . 3 21 . . . . . 5 . 3 Cannons 43 | . . . . . . . 5 . . 7 5 7 5 1 13 Classes Destroyed 13 | . 4 . 2 . . . 3 . . 1 1 . 1 . 1 Worker 2 | . . . . . . . 1 . . . . . . . 1 Builder 2 | . . . . . . . . . . . . . 2 . . Tunneler 1 | . . . 1 . . . . . . . . . . . . Hauler 2 | . . . . . . . 1 . . . . . . . 1 Recycler 1 | . . . . . . . . . . . . . . . 1 Operator 13 | . 1 . 2 . . . 3 . . 2 1 1 1 . 2 Watcher 20 | . 3 . 1 . . . 4 . . 5 1 1 . 1 4 Swarmer 31 | . 6 3 3 . . . 8 . . 3 . . . . 8 Grunt 35 | . 6 2 2 . . 3 8 . . 2 . 5 4 . 3 Brawler 1 | . . . . . . . 1 . . . . . . . . Sentry 24 | . . . 2 . . . 9 . . 1 4 2 3 1 2 Hunter 5 | . . . . . . . . . . . 1 2 . . 2 Programmer 10 | . . . . . . . . . . 2 1 . 4 . 3 Best Kill Streak 9 | . 4 3 4 . . 3 9 . . 3 3 2 4 1 4 Combat Bots Only 8 | . 3 3 3 . . 3 8 . . 3 3 2 3 1 4 Max Kills in Single Turn 2 | . 1 1 2 . . 1 1 . . 1 1 1 2 1 1 Gunslinging . | . . . . . . . . . . . . . . . . Exploded . | . . . . . . . . . . . . . . . . Melee . | . . . . . . . . . . . . . . . . Uniques/NPCs Destroyed . | . . . . . . . . . . . . . . . . Combat | -11 -10 -10 -9 -9 -9 -8 -8 -7 -7 -7 -6 -6 -5 -4 -3 -------- Run | Yrd Mat Min Mat Min Exi Min Mat Fac Was Fac Fac Ext Fac Fac Res Hostile Shots Fired 850 | . 59 24 18 . . 32 117 . 1 60 79 164 46 12 238 Missed 398 | . 24 5 10 . . 8 50 . 1 27 45 71 25 6 126 Damage Taken 6943 | . 379 212 98 . . 368 915 . . 343 386 1264 429 135 2414 Core 5522 | . 280 147 77 . . 292 742 . . 270 312 1023 338 106 1935 Absorbed by Shields 58 | . . . . . . . . . . . . 58 . . . Redirected to Core 4725 | . 231 79 43 . . 262 611 . . 227 246 832 320 106 1768 Ignored by Resistances 79 | . . . . . . . . . . . . . 15 12 52 Regen/Repaired (Parts) 15 | . . . . . . . 15 . . . . . . . . Core Remaining (%) 72 | 100 . 79 . . . 39 77 . . 90 . 46 72 79 . Volleys Fired 436 | . 58 14 28 . . 15 83 . . 34 23 49 31 10 91 Largest 2 | . 2 2 2 . . 2 2 . . 2 2 2 2 2 2 Hottest 146 | . 70 60 84 . . 84 105 . . 134 138 138 146 146 146 Shots Fired 839 | . 107 28 56 . . 26 165 . . 68 40 88 62 20 179 Gun 492 | . 107 28 56 . . 26 137 . . 6 . . 31 10 91 Cannon 347 | . . . . . . . 28 . . 62 40 88 31 10 88 Launcher . | . . . . . . . . . . . . . . . . Special . | . . . . . . . . . . . . . . . . Kinetic 436 | . 58 14 28 . . 15 83 . . 34 23 49 31 10 91 Thermal 403 | . 49 14 28 . . 11 82 . . 34 17 39 31 10 88 Explosive . | . . . . . . . . . . . . . . . . Electromagnetic . | . . . . . . . . . . . . . . . . Robot Hit Streak 87 | . 16 6 14 . . 27 87 . . 54 16 35 26 10 41 Robot Miss Streak 6 | . 6 2 2 . . . 1 . . 2 1 1 1 1 1 Penetration Max 1 | . . . . . . . . . . . . . 1 . 1 Secondary Targets 4 | . . 1 . . . . 3 . . . . . . . . Max Gunslinging Chain 1 | . . 1 . . . . 1 . . . . . . . . Shots Hit Robots 634 | . 61 17 38 . . 26 141 . . 55 29 77 52 14 124 Core Hits 241 | . 30 9 16 . . 10 59 . . 17 13 15 19 6 47 Critical Kills 6 | . . . . . . . . . . 1 . 2 1 . 2 Critical Parts Destroyed 3 | . . . . . . . . . . . . . 1 . 2 Critical Strikes 25 | . 2 . 2 . . . 4 . . 3 2 6 2 . 4 Burn 8 | . 2 . 2 . . . 3 . . 1 . . . . . Meltdown 6 | . . . . . . . . . . 1 . 2 1 . 2 Destroy 3 | . . . . . . . . . . . . . 1 . 2 Blast 8 | . . . . . . . 1 . . 1 2 4 . . . Melee Attacks 22 | . . . . . . . . . . . . 21 1 . . Impact 22 | . . . . . . . . . . . . 21 1 . . Slashing . | . . . . . . . . . . . . . . . . Piercing . | . . . . . . . . . . . . . . . . Sneak Attacks . | . . . . . . . . . . . . . . . . Combat Hostiles . | . . . . . . . . . . . . . . . . Follow-up Attacks . | . . . . . . . . . . . . . . . . Damage Inflicted 16629 | . 656 177 495 . . 413 2438 . . 1536 1137 2681 2044 502 4550 Guns 6586 | . 656 177 495 . . 413 1982 . . 104 . . 811 218 1730 Cannons 9887 | . . . . . . . 456 . . 1432 981 2681 1233 284 2820 Explosions 156 | . . . . . . . . . . . 156 . . . . Melee . | . . . . . . . . . . . . . . . . Ramming . | . . . . . . . . . . . . . . . . Kinetic 6484 | . 294 78 182 . . 226 1083 . . 593 407 862 811 218 1730 Thermal 9989 | . 362 99 313 . . 187 1355 . . 943 574 1819 1233 284 2820 Explosive . | . . . . . . . . . . . . . . . . Electromagnetic 156 | . . . . . . . . . . . 156 . . . . Impact . | . . . . . . . . . . . . . . . . Slashing . | . . . . . . . . . . . . . . . . Piercing . | . . . . . . . . . . . . . . . . Highest Corruption 4 | . . . . . . . . . . 3 . . 4 . 2 Average Corruption 1 | . . . . . . . . . . 1 . . 2 . 1 Corruption Purged 2 | . . . . . . . . . . 2 . . . . . Corruption Blocked . | . . . . . . . . . . . . . . . . Effects 13 | . . . . . . . . . . 2 . . 3 . 8 Message Errors 4 | . . . . . . . . . . 1 . . . . 3 Matter Fused 3 | . . . . . . . . . . . . . 1 . 2 Heat Flow Errors 3 | . . . . . . . . . . 1 . . 2 . . Data Loss (minor) 1 | . . . . . . . . . . . . . . . 1 Data Loss (major) 1 | . . . . . . . . . . . . . . . 1 Weapon Failures 1 | . . . . . . . . . . . . . . . 1 Overload Shots 44 | . . . . . . . . . . 4 10 30 . . . Effects 1 | . . . . . . . . . . . . 1 . . . Energy Bleed 1 | . . . . . . . . . . . . 1 . . . Overflow Damage 532 | . . . . . . . . . . 156 140 85 72 . 79 Projectiles 532 | . . . . . . . . . . 156 140 85 72 . 79 Explosions . | . . . . . . . . . . . . . . . . Melee . | . . . . . . . . . . . . . . . . Knockbacks 16 | . . . . . . . 8 . . 4 2 2 . . . Impact . | . . . . . . . . . . . . . . . . Kinetic 16 | . . . . . . . 8 . . 4 2 2 . . . Secondary . | . . . . . . . . . . . . . . . . Self-Inflicted Damage . | . . . . . . . . . . . . . . . . Shots . | . . . . . . . . . . . . . . . . Rammed . | . . . . . . . . . . . . . . . . Targets Rammed . | . . . . . . . . . . . . . . . . Kicked . | . . . . . . . . . . . . . . . . Crushed . | . . . . . . . . . . . . . . . . Highest Temperature 347 | . 347 113 122 . . 307 36 . . 135 32 32 144 . 39 Average Temperature 66 | . 84 41 32 . . 136 15 . . 36 18 14 30 . 20 Received Heat Transfer 1530 | . 144 99 45 . . 270 432 . . 57 54 210 72 36 111 Effects 2 | . 2 . . . . . . . . . . . . . . Shutdowns 1 | . 1 . . . . . . . . . . . . . . Short Circuit 1 | . 1 . . . . . . . . . . . . . . Siege Activations . | . . . . . . . . . . . . . . . . Robots Corrupted 1 | . . . . . . . . . . . 1 . . . . Combat Hostiles 1 | . . . . . . . . . . . 1 . . . . Parts Fried 1 | . . . . . . . . . . . 1 . . . . Impact Corruptions . | . . . . . . . . . . . . . . . . Robots Melted 6 | . . . . . . . . . . 1 . 2 1 . 2 Combat Hostiles 6 | . . . . . . . . . . 1 . 2 1 . 2 Parts Melted 33 | . 1 . 3 . . . 6 . . 7 . 4 3 . 9 Heat Transferred 13242 | . 1149 225 827 . . 407 3182 . . 1273 561 1733 1073 259 2553 Parts Sabotaged . | . . . . . . . . . . . . . . . . Parts Stolen . | . . . . . . . . . . . . . . . . Parts Stripped . | . . . . . . . . . . . . . . . . Power Chain Reactions . | . . . . . . . . . . . . . . . . Alert | -11 -10 -10 -9 -9 -9 -8 -8 -7 -7 -7 -6 -6 -5 -4 -3 ------- Run | Yrd Mat Min Mat Min Exi Min Mat Fac Was Fac Fac Ext Fac Fac Res Peak Influence 743 | . 306 180 435 91 . 75 471 214 74 400 638 527 357 160 743 Initial 312 | . . 60 70 91 . . . 214 74 51 137 312 257 70 84 Average 199 | . 119 155 240 91 . 18 205 214 74 230 282 196 160 107 357 Maximum Alert Level 3 | . 1 . 2 . . . 2 1 . 2 2 2 1 . 3 Low Security (%) 60 | 100 83 100 47 100 . 100 63 . 100 22 47 58 67 100 32 Level 1 26 | . 16 . 28 . . . 14 100 . 75 34 28 32 . 22 Level 2 11 | . . . 24 . . . 22 . . 1 18 13 . . 34 Level 3 1 | . . . . . . . . . . . . . . . 10 Level 4 . | . . . . . . . . . . . . . . . . Level 5 . | . . . . . . . . . . . . . . . . High Security . | . . . . . . . . . . . . . . . . Max Security . | . . . . . . . . . . . . . . . . Squads Dispatched 29 | . 2 . 2 . . . 4 . . 1 4 2 3 2 9 Investigation 6 | . 1 . . . . . 1 . . . . 2 1 1 . Extermination 4 | . . . . . . . . . . . 1 . 1 . 2 Reinforcement 13 | . 1 . 2 . . . 3 . . 1 1 . 1 1 3 Assault 1 | . . . . . . . . . . . 1 . . . . Garrison 5 | . . . . . . . . . . . 1 . . . 4 Intercept . | . . . . . . . . . . . . . . . . Searches Triggered 1 | . . . . . . . . . . . . . . . 1 Construction Impeded . | . . . . . . . . . . . . . . . . Haulers Reinforced 1 | . . . . . . . . . . . . . 1 . . Active Scanning Responses . | . . . . . . . . . . . . . . . . Cargo Convoy Interrupts . | . . . . . . . . . . . . . . . . Stealth | -11 -10 -10 -9 -9 -9 -8 -8 -7 -7 -7 -6 -6 -5 -4 -3 --------- Run | Yrd Mat Min Mat Min Exi Min Mat Fac Was Fac Fac Ext Fac Fac Res Distress Signals 13 | . 1 . 1 . . . 3 . . 1 1 1 . . 5 Communications Jammed . | . . . . . . . . . . . . . . . . Distress Signals . | . . . . . . . . . . . . . . . . Times Spotted 218 | . 21 5 17 . . 5 37 . 6 15 9 23 13 2 65 Peak Tracking Total 12 | . 6 3 6 . . 3 6 . 6 3 2 5 4 1 12 Tactical Retreats 21 | . 2 . 2 . . . 2 . . . . 2 . . 13 Traps | -11 -10 -10 -9 -9 -9 -8 -8 -7 -7 -7 -6 -6 -5 -4 -3 ------- Run | Yrd Mat Min Mat Min Exi Min Mat Fac Was Fac Fac Ext Fac Fac Res Traps Triggered 5 | . . . . . . . . 1 . . . 3 . 1 . Indirectly . | . . . . . . . . . . . . . . . . Trap Hack Attempts . | . . . . . . . . . . . . . . . . Triggered . | . . . . . . . . . . . . . . . . Disarmed 25 | . 9 . . . . . 2 . . . . 8 6 . . Reprogrammed . | . . . . . . . . . . . . . . . . Reused . | . . . . . . . . . . . . . . . . Traps Extracted . | . . . . . . . . . . . . . . . . Installed . | . . . . . . . . . . . . . . . . Triggered . | . . . . . . . . . . . . . . . . Machines | -11 -10 -10 -9 -9 -9 -8 -8 -7 -7 -7 -6 -6 -5 -4 -3 ---------- Run | Yrd Mat Min Mat Min Exi Min Mat Fac Was Fac Fac Ext Fac Fac Res Machines Disabled 25 | . . . . . . . 1 . . 3 6 3 10 . 2 Max in Single Turn 4 | . . . . . . . 1 . . 2 4 . 1 . 1 Garrison Access 4 | . . . . . . . 1 . . . 1 . 2 . . Machines Repaired . | . . . . . . . . . . . . . . . . Machines Dismantled . | . . . . . . . . . . . . . . . . Machines Sabotaged . | . . . . . . . . . . . . . . . . Overloaded Fab Kills . | . . . . . . . . . . . . . . . . Hacking | -11 -10 -10 -9 -9 -9 -8 -8 -7 -7 -7 -6 -6 -5 -4 -3 --------- Run | Yrd Mat Min Mat Min Exi Min Mat Fac Was Fac Fac Ext Fac Fac Res Machines Accessed 78 | . 7 1 6 . 1 . 12 . . 3 7 16 13 . 12 Terminals 64 | . 7 . 6 . . . 9 . . 3 6 16 9 . 8 Fabricators 3 | . . . . . . . . . . . 1 . 1 . 1 Repair Stations 1 | . . . . . . . 1 . . . . . . . . Recycling Units . | . . . . . . . . . . . . . . . . Scanalyzers 4 | . . . . . . . 1 . . . . . 1 . 2 Garrison Access 4 | . . . . . . . 1 . . . . . 2 . 1 Total Hacks 206 | . 19 1 20 . 1 . 39 . . 6 14 40 39 . 27 Successful 98 | . 8 1 8 . 1 . 23 . . 5 5 16 22 . 9 Failed 107 | . 11 . 12 . . . 15 . . 1 9 24 17 . 18 Catastrophic 17 | . . . 3 . . . 3 . . 1 1 1 2 . 6 Database Lockouts 1 | . . . . . . . 1 . . . . . . . . Manual 68 | . 13 . 9 . 1 . 11 . . 3 9 7 9 . 6 Terminals 176 | . 19 . 20 . . . 32 . . 6 13 40 26 . 20 Fabricators 6 | . . . . . . . . . . . 1 . 4 . 1 Repair Stations 3 | . . . . . . . 3 . . . . . . . . Recycling Units . | . . . . . . . . . . . . . . . . Scanalyzers 12 | . . . . . . . 3 . . . . . 5 . 4 Garrison Access 7 | . . . . . . . 1 . . . . . 4 . 2 Terminal Hacks 82 | . 8 1 8 . 1 . 18 . . 5 4 16 13 . 8 Record 3 | . . . . . . . 3 . . . . . . . . Part Schematic 1 | . . . . . . . . . . . . . 1 . . Robot Analysis 1 | . . . . . . . 1 . . . . . . . . Prototype ID Bank 7 | . . . 3 . . . 2 . . . . . . . 2 Open Door 12 | . . 1 . . . . . . . . 1 10 . . . Open DSF 5 | . . . . . . . . . . 1 1 . 2 . 1 Level Access Points 2 | . . . . . . . . . . . 1 . 1 . . Branch Access Points 5 | . 1 . . . . . 4 . . . . . . . . Emergency Access Points 2 | . . . . . . . 1 . . . . . . . 1 Machine Index 1 | . . . . . . . . . . . . . 1 . . Terminal Index 7 | . 1 . 1 . . . 1 . . 1 1 . 1 . 1 Recycling Unit Index 1 | . . . . . . . 1 . . . . . . . . Alert Level 2 | . . . . . . . . . . . . . 1 . 1 Unreport Threat 12 | . 1 . . . . . 3 . . . . 3 4 . 1 Locate Traps 2 | . 1 . . . . . 1 . . . . . . . . Disarm Traps 6 | . 2 . . . . . 1 . . . . 2 1 . . Dispatch Records 2 | . . . 1 . . . . . . . . . . . 1 Recall Investigation 1 | . . . . . . . . . . . . 1 . . . Hauler Manifests 5 | . 2 . 2 . . . . . . 1 . . . . . Registered Components 1 | . . . . . . . . . . 1 . . . . . Registered Prototypes 1 | . . . . . . . . . . . . . 1 . . Zone Layout 2 | . . . 1 . . . . . . 1 . . . . . Derelict Proto ID Bank 1 | . . . . . 1 . . . . . . . . . . Fabricator Hacks 4 | . . . . . . . . . . . 1 . 2 . 1 Network Status 3 | . . . . . . . . . . . 1 . 1 . 1 Build 1 | . . . . . . . . . . . . . 1 . . Repair Station Hacks 2 | . . . . . . . 2 . . . . . . . . Scan Component 1 | . . . . . . . 1 . . . . . . . . Repair 1 | . . . . . . . 1 . . . . . . . . Recycling Unit Hacks . | . . . . . . . . . . . . . . . . Scanalyzer 7 | . . . . . . . 2 . . . . . 5 . . Insert Component 3 | . . . . . . . 1 . . . . . 2 . . Analyze 4 | . . . . . . . 1 . . . . . 3 . . Garrison Access Hacks 3 | . . . . . . . 1 . . . . . 2 . . Seal Access 3 | . . . . . . . 1 . . . . . 2 . . Unauthorized Hacks . | . . . . . . . . . . . . . . . . Terminals . | . . . . . . . . . . . . . . . . Fabricators . | . . . . . . . . . . . . . . . . Repair Stations . | . . . . . . . . . . . . . . . . Recycling Units . | . . . . . . . . . . . . . . . . Scanalyzers . | . . . . . . . . . . . . . . . . Garrison Access . | . . . . . . . . . . . . . . . . Data Cores Recovered 7 | . . . . . . . 2 . . 1 . 1 1 . 2 Used 3 | . . . . . . . . . . . . 1 1 . 1 Hacking Detections 57 | . 7 . 6 . . . 9 . . 2 4 9 9 . 11 Full Trace Events 6 | . 2 . . . . . 2 . . . . 2 . . . Feedback Events . | . . . . . . . . . . . . . . . . Feedback Blocked . | . . . . . . . . . . . . . . . . Robot Schematics Acquired . | . . . . . . . . . . . . . . . . Robots Built . | . . . . . . . . . . . . . . . . Authchips . | . . . . . . . . . . . . . . . . Time . | . . . . . . . . . . . . . . . . Total Robot Build Rating . | . . . . . . . . . . . . . . . . Part Schematics Acquired 4 | . . . . . . . 1 . . . . . 3 . . Parts Built 2 | . . . . . . . . . . . . . 2 . . Authchips . | . . . . . . . . . . . . . . . . Time 128 | . . . . . . . . . . . . . 128 . . Total Part Build Rating 16 | . . . . . . . . . . . . . 16 . . Parts Repaired 1 | . . . . . . . 1 . . . . . . . . Time 76 | . . . . . . . 76 . . . . . . . . Parts Recycled . | . . . . . . . . . . . . . . . . Recycled Matter . | . . . . . . . . . . . . . . . . Retrieved Matter . | . . . . . . . . . . . . . . . . Retrieved Components . | . . . . . . . . . . . . . . . . Parts Scanalyzed 3 | . . . . . . . 1 . . . . . 2 . . Part Schematics Acquired 3 | . . . . . . . 1 . . . . . 2 . . Parts Damaged . | . . . . . . . . . . . . . . . . Bothacking | -11 -10 -10 -9 -9 -9 -8 -8 -7 -7 -7 -6 -6 -5 -4 -3 ------------ Run | Yrd Mat Min Mat Min Exi Min Mat Fac Was Fac Fac Ext Fac Fac Res Used RIF Installer . | . . . . . . . . . . . . . . . . Robots Hacked . | . . . . . . . . . . . . . . . . Non-combat . | . . . . . . . . . . . . . . . . Combat . | . . . . . . . . . . . . . . . . Robot Hacks Applied . | . . . . . . . . . . . . . . . . Relay Couplers Released . | . . . . . . . . . . . . . . . . Fabnet Peak Effective % . | . . . . . . . . . . . . . . . . Robots Rewired . | . . . . . . . . . . . . . . . . Allies Hacked . | . . . . . . . . . . . . . . . . Hacks Repelled . | . . . . . . . . . . . . . . . . Allies | -11 -10 -10 -9 -9 -9 -8 -8 -7 -7 -7 -6 -6 -5 -4 -3 -------- Run | Yrd Mat Min Mat Min Exi Min Mat Fac Was Fac Fac Ext Fac Fac Res Total Allies 12 | . . . . . . . . . . . . 12 . . . Largest Group 7 | . . . . . . . . . . . . 7 5 . . Highest-Rated Group 296 | . . . . . . . . . . . . 296 296 . . Highest-Rated Ally 159 | . . . . . . . . . . . . 159 159 . . Total Orders . | . . . . . . . . . . . . . . . . Ally Attacks 96 | . . . . . . . . . . . . 77 19 . . Total Damage 2196 | . . . . . . . . . . . . 1592 604 . . Kills 23 | . . . . . . . . . . . . 17 6 . . Allies Corrupted . | . . . . . . . . . . . . . . . . Allies Melted . | . . . . . . . . . . . . . . . . Intel | -11 -10 -10 -9 -9 -9 -8 -8 -7 -7 -7 -6 -6 -5 -4 -3 ------- Run | Yrd Mat Min Mat Min Exi Min Mat Fac Was Fac Fac Ext Fac Fac Res Robot Analysis Total 1 | . . . . . . . 1 . . . . . . . . Derelict Logs Recovered 1 | . . 1 . . . . . . . . . . . . . Drone Launches . | . . . . . . . . . . . . . . . . Drone Recoveries . | . . . . . . . . . . . . . . . . Exploration | -11 -10 -10 -9 -9 -9 -8 -8 -7 -7 -7 -6 -6 -5 -4 -3 ------------- Run | Yrd Mat Min Mat Min Exi Min Mat Fac Was Fac Fac Ext Fac Fac Res Turns Passed 7601 | 63 717 215 410 29 100 448 1047 32 65 683 298 941 1367 114 1072 Spaces Moved 9750 | 40 719 459 754 86 229 643 1139 63 130 920 439 948 1567 150 1464 Core 10 | 7 1 . . . . . . . . 2 . . . . . Treads 176 | 33 143 . . . . . . . . . . . . . . Legs . | . . . . . . . . . . . . . . . . Wheels . | . . . . . . . . . . . . . . . . Hover . | . . . . . . . . . . . . . . . . Flight 9564 | . 575 459 754 86 229 643 1139 63 130 918 439 948 1567 150 1464 Fastest Speed 34 | 50 34 34 34 34 34 50 50 50 50 50 50 50 50 50 50 Average Speed 48 | 140 60 34 34 34 42 50 50 50 50 50 50 50 50 50 50 Slowest Speed 300 | 160 160 34 34 34 50 50 50 50 50 300 50 50 50 50 50 Overloaded Moves . | . . . . . . . . . . . . . . . . Propulsion Burnouts . | . . . . . . . . . . . . . . . . Robots Hopped 38 | . . 2 3 . . 7 7 . . 2 1 1 3 . 12 Cave-ins Triggered . | . . . . . . . . . . . . . . . . Exploration Rate (%) 47 | 3 95 95 37 18 60 78 92 3 77 25 12 86 36 5 38 Regions Visited 15 Branch Regions 5 Pre-discovered Areas 1 | . . 1 . . . . . . . . . . . . . Known Exits Taken 11 | . 1 . 1 1 1 1 1 . . 1 1 1 1 1 . Unknown Exits Taken 2 | 1 . 1 . . . . . . . . . . . . . Scrap Searched 4 | . . 1 . 1 . 2 . . . . . . . . . Spaces Dug 38 | . . . . . . . . . . . . . 1 2 35 Terrain Destroyed 81 | . . . . . . . 1 . . 1 5 10 8 8 48 Melee 1 | . . . . . . . . . . . . . 1 . . Projectile 80 | . . . . . . . 1 . . 1 5 10 7 8 48 AOE . | . . . . . . . . . . . . . . . . Terrain Rammed . | . . . . . . . . . . . . . . . . Walls Destroyed . | . . . . . . . . . . . . . . . . Machines Disabled . | . . . . . . . . . . . . . . . . Actions | -11 -10 -10 -9 -9 -9 -8 -8 -7 -7 -7 -6 -6 -5 -4 -3 --------- Run | Yrd Mat Min Mat Min Exi Min Mat Fac Was Fac Fac Ext Fac Fac Res Total 11669 | 45 903 490 850 85 232 736 1442 63 129 1066 476 1282 2086 168 1616 Wait 1201 | . 95 15 59 . . 82 166 . . 80 3 224 439 . 38 Move 9662 | 39 718 454 747 85 228 629 1124 63 129 915 436 945 1561 149 1440 Hop 35 | . . 2 3 . . 6 7 . . 2 1 1 2 . 11 Pick Up 28 | 1 2 1 2 . . 1 4 . . 3 1 . 8 . 5 Fast Attach 22 | 4 5 . 1 . 1 . 5 . . 4 1 . . . 1 Attach 9 | 1 2 1 1 . . . 1 . . 1 . . 1 . 1 Detach 2 | . . . . . . . 1 . . . . . 1 . . Swap 22 | . 1 . 1 . . 1 5 . . 3 2 2 6 . 1 Drop 40 | . 4 . 2 . 3 2 6 . . 5 3 . 8 . 7 Fire 436 | . 58 14 28 . . 15 83 . . 34 23 49 31 10 91 Melee 22 | . . . . . . . . . . . . 21 1 . . Ram . | . . . . . . . . . . . . . . . . Kick . | . . . . . . . . . . . . . . . . Crush . | . . . . . . . . . . . . . . . . Escape Stasis 7 | . . . . . . . . . . . . 6 . . 1 Rewire . | . . . . . . . . . . . . . . . . Trap . | . . . . . . . . . . . . . . . . Miscellaneous 183 | . 18 3 6 . . . 40 . . 19 6 34 28 9 20 Route ------- -11/Scrapyard -10/Materials (discovered 4 exits: *Mat x3 / *Min) -10/Mines (discovered 3 exits: *Mat x2 / Sub) -9/Materials (discovered 2 exits: *Mat / *Min) -9/Mines (discovered 2 exits: *Mat / *Exi) -9/Exiles -8/Mines -8/Materials (discovered 2 exits: *Fac x2) -7/Factory -7/Waste -7/Factory (discovered 2 exits: *Fac / *Sto) -6/Factory (discovered 5 exits: Fac x4 / *Ext) -6/Extension (discovered 3 exits: *Fac x2 / *Cet) -5/Factory (discovered 5 exits: *Fac x4 / *Upp) -4/Factory (discovered 2 exits: *Res / *Upp) -3/Research (discovered 1 exit: *Qua) History --------- Turn | Location | Event 1 | -11/Scrapyard | Upgraded with Propulsion slot (x1) 1 | -11/Scrapyard | Upgraded with Utility slot (x1) 1 | -11/Scrapyard | Upgraded with Weapon slot (x1) 2 | -11/Scrapyard | Met Revision 17 7 | -11/Scrapyard | Discovered new exit (range 15) 64 | -11/Scrapyard | Entered Materials 312 | -10/Materials | Build established: Mutant 357 | -10/Materials | Discovered new exit (range 15) 385 | -10/Materials | Discovered new exit (range 16) 656 | -10/Materials | Discovered new exit (range 16) 692 | -10/Materials | Reached level 2 698 | -10/Materials | Upgraded with Propulsion slot (x1) 698 | -10/Materials | Upgraded with Utility slot (x1) 734 | -10/Materials | Identified exit to Mines 757 | -10/Materials | Discovered new exit (range 15) 781 | -10/Materials | Entered Mines 817 | -10/Mines | Met a Derelict bent on vengeance 851 | -10/Mines | Found a damaged Exp. Sensor Array with a note attached 852 | -10/Mines | Found Prototype Device 853 | -10/Mines | Identified Exp. Sensor Array 910 | -10/Mines | Learned location of Storage (-7) 934 | -10/Mines | Discovered new exit (range 14) 943 | -10/Mines | Discovered new exit (range 5) 945 | -10/Mines | Identified exit to Subcaves 962 | -10/Mines | Met a Derelict who couldn't figure out how to use a Trap Extractor 996 | -10/Mines | Entered Materials 998 | -9/Materials | Reached level 3 1170 | -9/Materials | Reached level 4 1321 | -9/Materials | Discovered new exit (range 8) 1323 | -9/Materials | Identified exit to Mines 1332 | -9/Materials | Discovered new exit (range 20) 1406 | -9/Materials | Entered Mines 1428 | -9/Mines | Found a hidden stash of uninstalled traps 1429 | -9/Mines | Discovered new exit (range 5) 1431 | -9/Mines | Identified exit to Materials 1433 | -9/Mines | Deemed a non-threat by the Exiles lab entrance 1434 | -9/Mines | Discovered new exit (range 5) 1435 | -9/Mines | Identified exit to Exiles 1435 | -9/Mines | Entered Exiles 1443 | -9/Exiles | Met 8R-AWN 1450 | -9/Exiles | Met EX-HEX 1459 | -9/Exiles | Met EX-BIN 1463 | -9/Exiles | Reached level 5 1463 | -9/Exiles | Aligned with FarCom system 1463 | -9/Exiles | Given EX-Vault access code 1472 | -9/Exiles | Opened EX-Vault 1473 | -9/Exiles | Upgraded with Propulsion slot (x1) 1475 | -9/Exiles | Found Flying Fortress v7 1488 | -9/Exiles | Warned to stay clear of 0b10 Research branches 1496 | -9/Exiles | Exiles lab attacked by MAIN.C 1529 | -9/Exiles | Discovered new exit (range 14) 1534 | -9/Exiles | Identified exit to Mines 1535 | -9/Exiles | Left Exiles lab with Flying Fortress v7 1535 | -9/Exiles | Entered Mines 1539 | -8/Mines | Discovered exit to Materials (range 9) 1802 | -8/Mines | Core integrity fell below 50% 1841 | -8/Mines | Build established: Scout 1983 | -8/Mines | Entered Materials 1984 | -8/Materials | Core integrity fell below 50% 1985 | -8/Materials | Reached level 6 1987 | -8/Materials | Upgraded with Utility slot (x1) 2184 | -8/Materials | Core integrity fell below 20% 2213 | -8/Materials | Reached level 7 2296 | -8/Materials | Build established: Hacker-Scout 2307 | -8/Materials | Discovered new exit (range 9) 2489 | -8/Materials | Repaired Broken Prc. Beam Rifle 2583 | -8/Materials | Reached level 8 2721 | -8/Materials | Destroyed 8 combat bots 2849 | -8/Materials | Discovered new exit (range 12) 2875 | -8/Materials | Central database locked down 3030 | -8/Materials | Identified exit to Factory 3030 | -8/Materials | Entered Factory 3032 | -7/Factory | Reached level 9 3062 | -7/Factory | Sucked down chute 3062 | -7/Factory | Entered Waste 3064 | -7/Waste | Reached level 10 3065 | -7/Waste | Upgraded with Utility slot (x1) 3075 | -7/Waste | Spotted C-40 Crusher 3075 | -7/Waste | Spotted C-40 Crusher 3076 | -7/Waste | Spotted C-40 Crusher 3076 | -7/Waste | Spotted C-40 Crusher 3081 | -7/Waste | Spotted C-40 Crusher 3085 | -7/Waste | Spotted C-40 Crusher 3120 | -7/Waste | Discovered new exit (range 12) 3127 | -7/Waste | Identified exit to Factory 3127 | -7/Waste | Entered Factory 3309 | -7/Factory | Discovered new exit (range 3) 3310 | -7/Factory | Identified exit to Storage 3611 | -7/Factory | Reached level 11 3796 | -7/Factory | Discovered new exit (range 16) 3803 | -7/Factory | Identified exit to Factory 3810 | -7/Factory | Entered another Factory area 3812 | -6/Factory | Reached level 12 3817 | -6/Factory | Identified exit to DSF 3916 | -6/Factory | Identified exit to Factory 4069 | -6/Factory | Reached level 13 4096 | -6/Factory | Upgraded with Utility slot (x1) 4106 | -6/Factory | Discovered new exit (range 5) 4107 | -6/Factory | Identified exit to Extension 4108 | -6/Factory | Entered Extension 4110 | -6/Extension | Reached level 14 4128 | -6/Extension | Rescued a captive Derelict 4134 | -6/Extension | Rescued a captive Derelict 4189 | -6/Extension | Spotted B-75 Beast 4276 | -6/Extension | Core integrity fell below 50% 4356 | -6/Extension | Rescued a captive Derelict 4503 | -6/Extension | Rescued a captive Derelict 4503 | -6/Extension | Rescued a captive Derelict 4584 | -6/Extension | Rescued a captive Derelict 4592 | -6/Extension | Rescued a captive Derelict 4593 | -6/Extension | Rescued a captive Derelict 4614 | -6/Extension | Spotted B-75 Beast 4633 | -6/Extension | Reached level 15 4649 | -6/Extension | Allies destroyed B-75 Beast 4674 | -6/Extension | Discovered exit to Factory (range 3) 4706 | -6/Extension | Rescued a captive Derelict 4709 | -6/Extension | Rescued a captive Derelict 4714 | -6/Extension | Rescued a captive Derelict 4901 | -6/Extension | Reached level 16 4946 | -6/Extension | Lost 3 allies 4948 | -6/Extension | Rescued A7 5004 | -6/Extension | Discovered exit to Factory (range 10) 5005 | -6/Extension | Discovered new exit (range 6) 5007 | -6/Extension | Identified exit to Cetus 5049 | -6/Extension | Entered Factory 5049 | -5/Factory | Accompanied by 5 allies (A7) 5050 | -5/Factory | Core integrity fell below 50% 5051 | -5/Factory | Reached level 17 5491 | -5/Factory | Fabricated Nova Cannon (x2) 5536 | -5/Factory | Reached level 18 5731 | -5/Factory | Discovered new exit (range 8) 5734 | -5/Factory | Identified exit to Upper Caves 5920 | -5/Factory | Identified exit to Factory 6014 | -5/Factory | Reached level 19 6416 | -5/Factory | Entered another Factory area 6418 | -4/Factory | Reached level 20 6465 | -4/Factory | Discovered new exit (range 15) 6479 | -4/Factory | Identified exit to Upper Caves 6498 | -4/Factory | Discovered new exit (range 5) 6521 | -4/Factory | Identified exit to Research 6530 | -4/Factory | Entered Research 6532 | -3/Research | Reached level 21 6532 | -3/Research | Reached level 22 6545 | -3/Research | Identified exit to DSF 6712 | -3/Research | Garrison activated, responded to threat 6725 | -3/Research | Core integrity fell below 50% 6790 | -3/Research | Discovered new exit (range 10) 6794 | -3/Research | Identified exit to Quarantine 6914 | -3/Research | Spotted B-86 Titan 6944 | -3/Research | Reached level 23 7387 | -3/Research | Garrison activated, responded to threat 7573 | -3/Research | Search patrols dispatched 7577 | -3/Research | Core integrity fell below 20% 7602 | -3/Research | Destroyed by S-43 Plague with Heavy Machine Gun Last Messages --------------- (142,167) - Idle (138,105) - Loaded: R-10 Processor 07567_ Penetrated by Slug. 07567_ Nova Cannon blasted off. 07567_ Knocked back. 07569_ Acquired Nova Cannon. 07569_ Penetrated by Slug. 07569_ Knocked back. 07573_ ALERT: Heightened foreign activity detected, multiple search patrols dispatched. 07575_ Slug penetrates Wave Intensifier. 07578_ Penetrated by Slug. 07580_ Slug penetrates Earth. 07584_ Slug penetrates Fabricator. 07588_ Slug penetrates S-43 Plague. 07588_ Destroyed Xenon Bombardment Thruster. 07589_ Fabricator completes Adv. Heavy Siege Treads. 07589_ U-05 Engineer builds a Wall. 07596_ Slug penetrates Earth. [Achievement: Just Browsing] Map ----- +----------------------------------------------------+ | #???????????????????????????????????? | | A +???????????????????????????????????? | | #??????? t ??????????????????????? | | k"""""""R #?????? ?????????????????????? | | """"""" #?????? k ????????????????????? | | """"""" #?????? ????????????????????? | | #?????? ???????????????????? | | #?????? ??????????????????? | | ####### ??????????????????? | | p ?????????????????? | | "" "" h ?????????????????? | | ""R"" u hp^ ????????????????? | | ?k """" k ### u ????????????????? | | ? k # #p ?????????k??????? | | w # "h ???????????????? | | ### ???????????????? | | # #?# ????k?????????? | | # ###########?#up R ????k?????????? | | ?k ????????????# ??????????????? | | ? ??????????????# u ??????????????? | | ????????????????# ""="" ??????????????? | | ????????????????# s "F="" ?#????????????????? | | ?k??????????????# s """""?????????????????????? | | ????????????????###s########?????????????????????? | | ????t???????????# sss ######????????????????????? | | ????????????Y???# ]s;s@ #????????????????????? | | ????????????????#!!! # ####????????????????????? | | ????????????????#!!! |##????????????????????????? | | ????????????????#!! #????????????????????k????? | | ????????????????# #?????????????????????????? | | ????????????????########?????????????????????????? | | ?????????????????????????????????????????????????? | | ?????????????????????????????????????????????????? | | ?????????????????????????????????????????????????? | | ?????????????????????????????????????????m???????? | | ?????????????????????????????????????????????????? | | ?????????????????????????????????????????????????? | | ????????????????????????????????????????????????k? | | ?????????????????????????????????????????????????? | | ?????????????????????????????????????????????????? | | ?????????????????????????????????????????????????? | | ?????????????????????????????????????????????????? | | ??????????????????????????????????????????????o??? | | ?????????????????????????????????????????u???????? | | ?????????????????????????????????????????????????? | | ?????????????????????????????????????????????????? | | ?????????????????????????????????????????????????? | | ??????u??????A?????u??Y??????????????????????????? | | ?????????????????????????????????????????????????? | | ?????????????g???????????????????????????????????? | +----------------------------------------------------+ Best States ------------- Heat Dissipation 73 Energy Generation 19 Energy Capacity 250 Matter Stores 300 Matter Capacity 300 Sight Range 16 Robot Scan Range 40 Terrain Scan Density 10 Armor Coverage 150 Resistance: TH 10 Evasion (%) 68 Armor Integrity Analysis 30 Recoil Reduction 2 Offensive Hacking 20 Defensive Hacking 14 Item Schematics ----------------- Exp. Sensor Array | -8/Materials | Scanalyzed Hacking Suite | -5/Factory | Hacked System Shield | -5/Factory | Scanalyzed Reaction Control System | -5/Factory | Scanalyzed Robot Schematics ------------------ None Fabricated ------------ Nova Cannon | x2 | -5/Factory | Preloaded Alien Tech Used ----------------- None Achievements -------------- Just Browsing Knowing Is Half The Battle Overkill Prison Break Challenges ------------ None RPGLIKE | -11 -10 -10 -9 -9 -9 -8 -8 -7 -7 -7 -6 -6 -5 -4 -3 --------- Run | Yrd Mat Min Mat Min Exi Min Mat Fac Was Fac Fac Ext Fac Fac Res Levels Raised 22 | . 1 . 2 . 1 . 3 1 1 1 2 3 3 1 3 XP Earned 37458 | 3000 1635 1100 2439 500 350 800 5150 1500 200 1640 3579 4861 4389 1685 4630 XP Spent 35945 | 2850 1650 . 3000 . 1350 . 4635 1460 1515 1475 3000 4525 3850 1100 5535 Upgrades 74 | 12 3 . 5 . 2 . 18 3 2 2 2 6 5 1 13 Propulsion Slot 3 | 1 1 . . . 1 . . . . . . . . . . Utility Slot 5 | 1 1 . . . . . 1 . 1 . 1 . . . . Weapon Slot 1 | 1 . . . . . . . . . . . . . . . Core Integrity 22 | . . . . . . . 9 . 1 . . 1 . . 11 Heat Dissipation 8 | . 1 . . . . . 5 2 . . . . . . . Inventory Capacity 4 | 1 . . . . . . 1 . . . . . 2 . . Sensor Range 10 | 8 . . . . 1 . . . . 1 . . . . . Ranged Accuracy 15 | . . . 5 . . . 2 1 . 1 1 2 1 . 2 TH Resistance % 2 | . . . . . . . . . . . . . 2 . . KI Damage % 4 | . . . . . . . . . . . . 3 . 1 . Protomatter Created 1555 | . 173 102 14 . . . 368 . . 142 93 157 268 65 173 Integrity Restored 3942 | . 329 54 126 . . . 870 . . 399 129 754 633 195 453 Core 3807 | . 251 54 126 . . . 870 . . 399 129 697 633 195 453 Parts 135 | . 78 . . . . . . . . . . 57 . . . Protomatter Decayed 355 | . 60 84 62 . . . 52 . . . 50 47 . . . Game ------ Seed ArmageddonHeavyExtrapolator Manual? 0 Play Time 02:00:28 Cumulative 31.5 hours Start 2025.03.22 @ 14:52:22 End 2025.03.23 @ 10:35:32 Sessions 5 Manual Loads 0 Difficulty Rogue Special Mode Winter2019/RPGLIKE Game No. 51 Rogue 51 Adventurer 0 Explorer 0 Win Type - Total 0 Types 0/0/0/0/0/0/0/0/0 Lore% 13 Gallery% 25 Achievement% 27 Wizard Run 0 Options --------- Layout 0 ASCII 0 Keyboard 0 Movement Mouse Keybinds 0 Fullscreen 1 Font 24/Smallcaps Map View 76x56 Zoom Use 0% Tactical HUD 1 Map Filters NONE Filters NONE Steam 1 RUN: 45e0fcd1-2cfe-4c9e-b2fd-d15d7f837194